bitfinex-derivatives/quotes_BNBF0:USTF0_20250111
["timestamp","ask_amount","ask_price","bid_price","bid_amount"]
[1736623722353,0.28697698,696.92,695.55,0.28754223]
[1736623722354,1.07545201,696.76,695.55,0.28754223]
[1736623723358,1.07545201,696.69,695.55,0.28754223]
[1736623724857,1.07545201,696.62,695.55,0.28754223]
[1736623725264,1.07545201,696.63,695.55,0.28754223]
[1736623727156,1.07545201,696.68,695.55,0.28754223]
[1736623728765,1.07545201,696.69,695.55,0.28754223]
[1736623729965,1.07545201,696.67,695.55,0.28754223]
[1736623731766,1.07545201,696.69,695.55,0.28754223]
[1736623732457,1.07545201,696.68,695.55,0.28754223]
[1736623733367,1.07545201,696.76,695.55,0.28754223]
[1736623734563,1.07545201,696.75,695.55,0.28754223]
[1736623737670,0.28697698,696.92,695.55,0.28754223]
[1736623737671,1.07545201,696.71,695.55,0.28754223]
[1736623740181,1.07545201,696.67,695.55,0.28754223]
[1736623740969,1.07545201,696.68,695.55,0.28754223]
[1736623741968,1.07545201,696.67,695.55,0.28754223]
[1736623742868,1.07545201,696.68,695.55,0.28754223]
[1736623743870,0.28697698,696.92,695.55,0.28754223]
[1736623743871,1.07545201,696.7,695.55,0.28754223]
[1736623744874,1.07545201,696.81,695.55,0.28754223]
[1736623746678,1.07545201,696.82,695.55,0.28754223]
[1736623749473,1.07545201,696.81,695.55,0.28754223]
[1736623752582,1.07545201,696.8,695.55,0.28754223]
[1736623753577,1.07545201,696.81,695.55,0.28754223]
[1736623754377,1.07545201,696.79,695.55,0.28754223]
[1736623755583,1.07545201,696.72,695.55,0.28754223]
[1736623757585,1.07545201,696.69,695.55,0.28754223]
[1736623758582,1.07545201,696.68,695.55,0.28754223]
[1736623759385,1.07545201,696.84,695.55,0.28754223]
[1736623760485,1.07545201,696.83,695.55,0.28754223]
[1736623761389,1.07545201,696.82,695.55,0.28754223]
[1736623762584,1.07545201,696.79,695.55,0.28754223]
[1736623765888,1.07545201,696.78,695.55,0.28754223]
[1736623768589,1.07545201,696.76,695.55,0.28754223]
[1736623769683,0.28697698,696.92,695.55,0.28754223]
[1736623769684,1.07545201,696.63,695.55,0.28754223]
[1736623771491,1.07545201,696.67,695.55,0.28754223]
[1736623773393,1.07545201,696.68,695.55,0.28754223]
[1736623774093,1.07545201,696.67,695.55,0.28754223]
[1736623775094,1.07545201,696.68,695.55,0.28754223]
[1736623777890,1.07545201,696.67,695.55,0.28754223]
[1736623778605,1.07545201,696.62,695.55,0.28754223]
[1736623779701,1.07545201,696.74,695.55,0.28754223]
[1736623780602,1.07545201,696.75,695.55,0.28754223]
[1736623781605,1.07545201,696.74,695.55,0.28754223]
[1736623785608,1.07545201,696.85,695.55,0.28754223]
[1736623786505,1.07545201,696.84,695.55,0.28754223]
[1736623788312,1.07545201,696.83,695.55,0.28754223]
[1736623789512,1.07545201,696.8,695.55,0.28754223]
[1736623790207,1.07545201,696.79,695.55,0.28754223]
[1736623791612,0.28697698,696.92,695.55,0.28754223]
[1736623791613,1.07545201,696.76,695.55,0.28754223]
[1736623792413,1.07545201,696.83,695.55,0.28754223]
[1736623793407,0.28697698,696.92,695.55,0.28754223]
[1736623793408,1.07545201,696.82,695.55,0.28754223]
[1736623794316,1.07545201,696.78,695.55,0.28754223]
[1736623795215,1.07545201,696.66,695.55,0.28754223]
[1736623797312,1.07545201,696.68,695.55,0.28754223]
[1736623799221,1.07545201,696.69,695.55,0.28754223]
[1736623799921,1.07545201,696.63,695.55,0.28754223]
[1736623801317,1.07545201,696.55,695.55,0.28754223]
[1736623802618,1.07545201,696.51,695.55,0.28754223]
[1736623803623,1.07545201,696.53,695.55,0.28754223]
[1736623804425,1.07545201,696.54,695.55,0.28754223]
[1736623805418,1.07545201,696.57,695.55,0.28754223]
[1736623807221,1.07545201,696.56,695.55,0.28754223]
[1736623808546,1.07545201,696.6,695.55,0.28754223]
[1736623809421,0.88968454,696.91,695.55,0.28754223]
[1736623809422,1.07545201,696.66,695.55,0.28754223]
[1736623810320,1.07545201,696.67,695.55,0.28754223]
[1736623813122,1.07545201,696.65,695.55,0.28754223]
[1736623815728,1.07545201,696.77,695.55,0.28754223]
[1736623816528,1.07545201,696.72,695.55,0.28754223]
[1736623817432,0.28697698,696.92,695.55,0.28754223]
[1736623817433,1.07545201,696.7,695.55,0.28754223]
[1736623818330,1.07545201,696.72,695.55,0.28754223]
[1736623819225,1.07545201,696.7,695.55,0.28754223]
[1736623820232,1.07545201,696.67,695.55,0.28754223]
[1736623821132,1.07545201,696.65,695.55,0.28754223]
[1736623821833,1.07545201,696.58,695.55,0.28754223]
[1736623822832,1.07545201,696.61,695.55,0.28754223]
[1736623823829,1.07545201,696.57,695.55,0.28754223]
[1736623825031,1.07545201,696.58,695.55,0.28754223]
[1736623826232,1.07545201,696.63,695.55,0.28754223]
[1736623827125,1.07545201,696.62,695.55,0.28754223]
[1736623828231,1.07545201,696.61,695.55,0.28754223]
[1736623830125,0.88937394,696.91,695.55,0.28754223]
[1736623830126,1.07545201,696.6,695.55,0.28754223]
[1736623830926,1.07545201,696.58,695.55,0.28754223]
[1736623832036,1.07545201,696.57,695.55,0.28754223]
[1736623832732,1.07545201,696.53,695.55,0.28754223]
[1736623834736,1.07545201,696.52,695.55,0.28754223]
[1736623835735,1.07545201,696.48,695.55,0.28754223]
[1736623837339,1.07545201,696.46,695.55,0.28754223]
[1736623839638,1.07545201,696.45,695.55,0.28754223]
[1736623841543,1.07545201,696.43,695.55,0.28754223]
[1736623843237,1.07545201,696.49,695.55,0.28754223]
[1736623844244,1.07545201,696.5,695.55,0.28754223]
[1736623845238,1.07545201,696.52,695.55,0.28754223]
[1736623846247,1.07545201,696.6,695.55,0.28754223]
[1736623847147,1.07545201,696.61,695.55,0.28754223]
[1736623848148,1.07545201,696.62,695.55,0.28754223]
[1736623849145,1.07545201,696.63,695.55,0.28754223]
[1736623850050,1.07545201,696.64,695.55,0.28754223]
[1736623851150,1.07545201,696.54,695.55,0.28754223]
[1736623852051,0.88911669,696.89,695.55,0.28754223]
[1736623852052,1.07545201,696.52,695.55,0.28754223]
[1736623852653,1.07545201,696.54,695.55,0.28754223]
[1736623853451,1.07545201,696.41,695.55,0.28754223]
[1736623855152,1.07545201,696.42,695.55,0.28754223]
[1736623856157,1.07545201,696.43,695.55,0.28754223]
[1736623861660,1.07545201,696.43,694.98,2.86418441]
[1736623861853,1.07545201,696.43,695.0,0.28776978]
[1736623867665,1.07545201,696.43,695.0,3.15195419]
[1736623868156,1.07545201,696.55,695.09,1.29026922]
[1736623868360,1.07545201,696.55,695.1,0.28772838]
[1736623870463,1.07545201,696.84,695.1,0.28772838]
[1736623870464,1.07545201,696.54,695.1,0.28772838]
[1736623871667,1.07545201,696.52,695.1,0.28772838]
[1736623872568,1.07545201,696.5,695.11,1.29026922]
[1736623872869,1.07545201,696.5,695.12,0.2877201]
[1736623873569,1.07545201,696.49,695.12,0.2877201]
[1736623874866,1.07545201,696.52,695.12,0.2877201]
[1736623875871,1.07545201,696.43,695.12,0.2877201]
[1736623876662,1.07545201,696.4,695.12,0.2877201]
[1736623878471,1.07545201,696.36,695.12,0.2877201]
[1736623879169,1.07545201,696.34,695.12,1.57798932]
[1736623880073,1.07545201,696.35,695.12,1.57798932]
[1736623881070,1.07545201,696.35,695.13,1.29026922]
[1736623881771,0.88911669,696.86,695.13,1.29026922]
[1736623881772,1.07545201,696.34,695.13,1.29026922]
[1736623882173,1.07545201,696.34,695.14,0.28771182]
[1736623882371,1.07545201,696.34,695.14,3.15189623]
[1736623882572,1.07545201,696.33,695.14,3.15189623]
[1736623883470,1.07545201,696.4,695.2,1.29026922]
[1736623884175,1.07545201,696.37,695.22,1.29026922]
[1736623885067,1.07545201,696.37,695.23,1.29026922]
[1736623887672,1.07545201,696.38,695.24,1.29026922]
[1736623888370,1.07545201,696.37,695.23,1.29026922]
[1736623889175,1.07545201,696.36,695.22,1.29026922]
[1736623889375,1.07545201,696.36,695.22,4.34083009]
[1736623889577,1.07545201,696.36,695.23,2.86418441]
[1736623890477,1.07545201,696.25,695.23,2.86418441]
[1736623890677,1.07545201,696.25,695.23,5.91474528]
[1736623890871,1.07545201,696.25,695.24,2.86418441]
[1736623891277,1.07545201,696.26,695.24,2.86418441]
[1736623892079,1.07545201,696.27,695.24,2.86418441]
[1736623892778,1.07545201,696.27,695.14,0.28771182]
[1736623897886,1.07545201,696.24,695.14,0.28771182]
[1736623898784,1.07545201,696.32,695.14,0.28771182]
[1736623901781,1.07545201,696.33,695.14,0.28771182]
[1736623903288,1.07545201,696.4,695.14,0.28771182]
[1736623904287,1.07545201,696.41,695.14,0.28771182]
[1736623905288,1.07545201,696.33,695.14,0.28771182]
[1736623906290,1.07545201,696.4,695.14,0.28771182]
[1736623907084,1.07545201,696.43,695.14,0.28771182]
[1736623908190,0.28718302,696.42,695.14,0.28771182]
[1736623908991,1.07545201,696.41,695.14,0.28771182]
[1736623909190,0.28719126,696.4,695.14,0.28771182]
[1736623911892,1.07545201,696.39,695.14,0.28771182]
[1736623912092,1.3626474,696.39,695.14,0.28771182]
[1736623912791,0.28719539,696.39,695.14,0.28771182]
[1736623915194,0.26411126,696.38,695.14,0.28771182]
[1736623915793,1.07545201,696.29,695.14,0.28771182]
[1736623916693,1.07545201,696.3,695.14,0.28771182]
[1736623917291,0.28719539,696.39,695.14,0.28771182]
[1736623917292,1.07545201,696.29,695.14,0.28771182]
[1736623919289,1.07545201,696.3,695.14,0.28771182]
[1736623920497,0.28719539,696.39,695.14,0.28771182]
[1736623920498,1.07545201,696.25,695.14,0.28771182]
[1736623921499,1.07545201,696.28,695.14,0.28771182]
[1736623923402,1.07545201,696.27,695.14,0.28771182]
[1736623925398,1.07545201,696.25,695.14,0.28771182]
[1736623926296,1.07545201,696.23,695.14,0.28771182]
[1736623926901,1.07545201,696.25,695.14,0.28771182]
[1736623928500,0.28719539,696.39,695.14,0.28771182]
[1736623928501,1.07545201,696.22,695.14,0.28771182]
[1736623929401,1.07545201,696.33,695.14,0.28771182]
[1736623930306,1.07545201,696.31,695.14,0.28771182]
[1736623931207,1.07545201,696.36,695.14,0.28771182]
[1736623932005,1.07545201,696.34,695.14,0.28771182]
[1736623933412,1.07545201,696.33,695.14,0.28771182]
[1736623934312,1.07545201,696.32,695.14,0.28771182]
[1736623936814,0.28719539,696.39,695.14,0.28771182]
[1736623936815,1.07545201,696.31,695.14,0.28771182]
[1736623939515,1.07545201,696.32,695.14,0.28771182]
[1736623941211,1.07545201,696.22,695.14,0.28771182]
[1736623942316,1.07545201,696.2,695.14,0.28771182]
[1736623943614,1.07545201,696.13,695.14,0.28771182]
[1736623944513,1.07545201,696.1,695.14,0.28771182]
[1736623945514,1.07545201,696.09,695.14,0.28771182]
[1736623946317,1.07545201,696.1,695.14,0.28771182]
[1736623947318,1.07545201,696.09,695.14,0.28771182]
[1736623948116,1.07545201,696.1,695.14,0.28771182]
[1736623949223,1.07545201,696.14,695.14,0.28771182]
[1736623951022,0.28719539,696.39,695.14,0.28771182]
[1736623951023,1.07545201,696.16,695.14,0.28771182]
[1736623951921,1.07545201,696.14,695.14,0.28771182]
[1736623952820,1.07545201,696.16,695.14,0.28771182]
[1736623954127,1.07545201,696.17,695.14,0.28771182]
[1736623955120,1.07545201,696.22,695.14,0.28771182]
[1736623956028,1.07545201,696.24,695.14,0.28771182]
[1736623957028,1.07545201,696.27,695.14,0.28771182]
[1736623958127,1.07545201,696.3,695.14,0.28771182]
[1736623959931,1.07545201,696.25,695.14,0.28771182]
[1736623961832,0.26415292,696.24,695.14,0.28771182]
[1736623962925,1.07545201,696.11,695.14,0.28771182]
[1736623964727,1.07545201,696.11,694.69,1.29026922]
[1736623964931,1.07545201,696.11,694.7,0.28789405]
[1736623965430,1.07545201,696.09,694.7,0.28789405]
[1736623967639,1.07545201,696.1,694.7,0.28789405]
[1736623968640,1.07545201,696.06,694.7,0.28789405]
[1736623969435,1.07545201,696.08,694.7,0.28789405]
[1736623970241,1.07545201,696.09,694.7,0.28789405]
[1736623971733,1.07545201,696.14,694.7,0.28789405]
[1736623972737,1.36275054,696.14,694.7,0.28789405]
[1736623973039,0.28730265,696.13,694.7,0.28789405]
[1736623982747,0.26420399,696.12,694.7,0.28789405]
[1736623982948,0.28731091,696.11,694.7,0.28789405]
[1736623983147,0.26420399,696.1,694.7,0.28789405]
[1736623983345,1.07545201,696.06,694.7,0.28789405]
[1736623985251,1.07545201,696.05,694.7,0.28789405]
[1736623986049,1.07545201,696.04,694.7,0.28789405]
[1736623987149,0.28731916,696.09,694.7,0.28789405]
[1736623987150,1.07545201,696.03,694.7,0.28789405]
[1736623989351,1.36277117,696.09,694.7,0.28789405]
[1736623989950,0.28731916,696.09,694.7,0.28789405]
[1736623990851,1.36277117,696.09,694.7,0.28789405]
[1736623993453,1.07545201,696.06,694.7,0.28789405]
[1736623993956,1.07545201,696.05,694.7,0.28789405]
[1736623995055,1.07545201,696.03,694.7,0.28789405]
[1736623995851,1.07545201,696.0,694.7,0.28789405]
[1736623996755,1.07545201,695.93,694.7,0.28789405]
[1736623997756,1.07545201,695.92,694.7,0.28789405]
[1736623998556,0.28731916,696.09,694.7,0.28789405]
[1736623998557,1.07545201,695.91,694.7,0.28789405]
[1736623999662,1.07545201,695.87,694.7,0.28789405]
[1736624000554,1.07545201,695.84,694.7,0.28789405]
[1736624002761,1.07545201,695.82,694.7,0.28789405]
[1736624003463,1.07545201,695.85,694.7,0.28789405]
[1736624004260,1.07545201,695.84,694.7,0.28789405]
[1736624006263,1.07545201,695.83,694.7,0.28789405]
[1736624007467,1.07545201,695.8,694.7,0.28789405]
[1736624009262,1.07545201,695.77,694.7,0.28789405]
[1736624011368,1.07545201,695.82,694.7,1.57816327]
[1736624013063,1.966886,696.08,694.7,0.28789405]
[1736624013064,1.07545201,695.81,694.7,0.28789405]
[1736624013871,1.07545201,695.82,694.7,1.57816327]
[1736624015767,1.07545201,695.81,694.7,0.28789405]
[1736624016769,1.07545201,695.83,694.7,0.28789405]
[1736624018378,1.07545201,695.78,694.7,0.28789405]
[1736624019381,1.07545201,695.8,694.7,0.28789405]
[1736624021579,1.07545201,695.79,694.7,0.28789405]
[1736624022282,1.07545201,695.8,694.7,0.28789405]
[1736624023178,1.07545201,695.81,694.7,0.28789405]
[1736624024675,0.89143399,696.08,694.7,0.28789405]
[1736624024676,1.07545201,695.8,694.7,0.28789405]
[1736624025582,1.07545201,695.92,694.7,0.28789405]
[1736624026180,1.07545201,695.91,694.7,0.28789405]
[1736624029184,1.07545201,695.92,694.7,0.28789405]
[1736624030885,1.07545201,695.91,694.7,0.28789405]
[1736624032084,1.07545201,695.92,694.7,0.28789405]
[1736624033580,1.07545201,695.84,694.7,0.28789405]
[1736624034884,1.07545201,695.8,694.7,0.28789405]
[1736624035882,1.07545201,695.79,694.7,0.28789405]
[1736624036789,1.07545201,695.78,694.7,0.28789405]
[1736624038391,1.07545201,695.79,694.7,0.28789405]
[1736624040191,1.07545201,695.76,694.7,0.28789405]
[1736624041394,1.07545201,695.77,694.7,0.28789405]
[1736624042197,1.07545201,695.79,694.7,0.28789405]
[1736624043999,1.07545201,695.81,694.7,0.28789405]
[1736624045197,1.07545201,695.9,694.7,0.28789405]
[1736624046198,1.07545201,695.92,694.7,0.28789405]
[1736624047000,1.07545201,695.91,694.7,0.28789405]
[1736624047901,1.07545201,695.86,694.7,0.28789405]
[1736624048794,1.07545201,695.92,694.7,0.28789405]
[1736624051903,0.28731916,696.09,694.7,0.28789405]
[1736624051904,1.07545201,695.8,694.7,0.28789405]
[1736624052806,1.07545201,695.81,694.7,0.28789405]
[1736624053706,1.07545201,695.77,694.7,0.28789405]
[1736624054406,1.07545201,695.76,694.7,0.28789405]
[1736624055906,1.07545201,695.72,694.7,0.28789405]
[1736624056802,0.89004614,696.08,694.7,0.28789405]
[1736624056803,1.07545201,695.7,694.7,0.28789405]
[1736624057905,1.07545201,695.72,694.7,0.28789405]
[1736624058500,1.07545201,695.91,694.7,0.28789405]
[1736624058501,1.07545201,695.71,694.7,0.28789405]
[1736624059406,1.07545201,695.72,694.7,0.28789405]
[1736624062308,1.07545201,695.73,694.7,0.28789405]
[1736624063510,1.07545201,695.79,694.7,0.28789405]
[1736624064309,1.07545201,695.98,694.7,0.28789405]
[1736624064310,1.07545201,695.84,694.7,0.28789405]
[1736624065605,1.07545201,695.83,694.7,0.28789405]
[1736624067811,1.07545201,695.81,694.7,0.28789405]
[1736624068912,1.07545201,695.8,694.7,0.28789405]
[1736624069811,1.07545201,696.01,694.7,0.28789405]
[1736624069812,1.07545201,695.77,694.7,0.28789405]
[1736624071912,1.07545201,695.69,694.7,0.28789405]
[1736624073213,1.07545201,695.74,694.7,0.28789405]
[1736624074214,1.07545201,695.7,694.7,0.28789405]
[1736624075414,1.07545201,695.72,694.7,0.28789405]
[1736624078220,1.07545201,695.74,694.7,0.28789405]
[1736624079220,1.07545201,695.83,694.7,0.28789405]
[1736624081613,1.07545201,695.92,694.7,0.28789405]
[1736624082821,1.07545201,696.04,694.7,0.28789405]
[1736624083023,0.28734393,696.03,694.7,0.28789405]
[1736624083518,1.36279594,696.03,694.7,0.28789405]
[1736624085722,1.07545201,696.02,694.7,0.28789405]
[1736624086624,1.07545201,695.97,694.7,0.28789405]
[1736624087920,1.07545201,695.95,694.7,0.28789405]
[1736624088724,1.07545201,695.96,694.7,0.28789405]
[1736624090426,1.07545201,695.97,694.7,0.28789405]
[1736624091527,1.07545201,695.86,694.7,0.28789405]
[1736624092327,0.28734393,696.03,694.7,0.28789405]
[1736624092328,1.07545201,695.87,694.7,0.28789405]
[1736624093127,1.07545201,695.86,694.7,0.28789405]
[1736624094128,0.28734393,696.03,694.7,0.28789405]
[1736624094129,1.07545201,695.85,694.7,0.28789405]
[1736624094731,1.07545201,695.84,694.7,0.28789405]
[1736624095634,0.28734393,696.03,694.7,0.28789405]
[1736624095635,1.07545201,695.79,694.7,0.28789405]
[1736624096531,1.07545201,695.8,694.7,0.28789405]
[1736624097635,1.07545201,695.76,694.7,0.28789405]
[1736624098832,1.07545201,695.74,694.7,0.28789405]
[1736624099737,1.07545201,695.69,694.7,0.28789405]
[1736624100439,1.07545201,695.7,694.7,0.28789405]
[1736624101341,1.07545201,695.77,694.7,0.28789405]
[1736624103346,1.07545201,695.81,694.7,0.28789405]
[1736624103945,1.07545201,695.82,694.7,0.28789405]
[1736624105939,1.07545201,695.79,694.7,0.28789405]
[1736624106843,1.07545201,695.81,694.7,0.28789405]
[1736624108645,1.07545201,695.77,694.7,0.28789405]
[1736624109840,0.88928148,696.02,694.7,0.28789405]
[1736624109841,1.07545201,695.82,694.7,0.28789405]
[1736624112046,1.07545201,696.01,694.7,0.28789405]
[1736624112047,1.07545201,695.81,694.7,0.28789405]
[1736624114049,1.07545201,695.8,694.7,0.28789405]
[1736624116352,1.07545201,695.85,694.7,0.28789405]
[1736624117148,1.07545201,695.93,694.7,0.28789405]
[1736624117850,0.28734393,696.03,694.7,0.28789405]
[1736624117851,1.07545201,695.92,694.7,0.28789405]
[1736624118847,0.28734393,696.03,694.7,0.28789405]
[1736624118848,1.07545201,695.91,694.7,0.28789405]
[1736624121053,1.07545201,695.92,694.7,0.28789405]
[1736624121754,1.07545201,695.93,694.7,0.28789405]
[1736624123451,0.28734393,696.03,694.7,0.28789405]
[1736624123452,1.07545201,695.87,694.7,0.28789405]
[1736624124852,0.26427957,695.86,694.7,0.28789405]
[1736624125256,1.07545201,695.68,694.7,0.28789405]
[1736624126055,1.07545201,695.69,694.7,0.28789405]
[1736624127758,1.07545201,695.68,694.7,0.28789405]
[1736624130561,1.07545201,695.76,694.7,0.28789405]
[1736624131664,1.07545201,695.75,694.7,0.28789405]
[1736624133761,1.07545201,695.73,694.7,0.28789405]
[1736624134466,0.89012135,696.02,694.7,0.28789405]
[1736624134467,1.07545201,695.75,694.7,0.28789405]
[1736624135267,1.07545201,695.73,694.7,0.28789405]
[1736624136168,1.07545201,695.74,694.7,0.28789405]
[1736624136969,1.07545201,695.73,694.7,0.28789405]
[1736624137770,1.07545201,695.67,694.7,0.28789405]
[1736624138972,1.07545201,695.85,694.7,0.28789405]
[1736624138973,1.07545201,695.69,694.7,0.28789405]
[1736624139779,1.07545201,695.71,694.7,0.28789405]
[1736624140779,1.07545201,695.86,694.7,0.28789405]
[1736624143878,1.07545201,695.85,694.7,0.28789405]
[1736624144676,1.07545201,695.86,694.7,0.28789405]
[1736624145377,1.07545201,695.9,694.7,0.28789405]
[1736624146480,0.28734393,696.03,694.7,0.28789405]
[1736624146481,1.07545201,695.88,694.7,0.28789405]
[1736624147381,1.07545201,695.83,694.7,0.28789405]
[1736624150079,1.07545201,695.81,694.7,0.28789405]
[1736624151284,1.07545201,695.71,694.7,0.28789405]
[1736624152479,1.07545201,695.7,694.7,0.28789405]
[1736624153584,1.07545201,695.64,694.7,0.28789405]
[1736624154682,1.07545201,695.63,694.7,0.28789405]
[1736624157089,1.07545201,695.64,694.7,0.28789405]
[1736624158887,1.07545201,695.65,694.7,0.28789405]
[1736624159789,1.07545201,695.62,694.7,0.28789405]
[1736624162285,1.07545201,695.63,694.7,0.28789405]
[1736624163088,1.07545201,695.66,694.7,0.28789405]
[1736624165194,1.07545201,695.67,694.7,0.28789405]
[1736624168190,1.07545201,695.72,694.7,0.28789405]
[1736624169297,1.07545201,695.71,694.7,0.28789405]
[1736624171195,1.07545201,695.73,694.7,0.28789405]
[1736624171894,1.07545201,695.72,694.7,0.28789405]
[1736624172992,1.07545201,695.91,694.7,0.28789405]
[1736624172993,1.07545201,695.73,694.7,0.28789405]
[1736624173995,0.89060361,696.0,694.7,0.28789405]
[1736624173996,1.07545201,695.71,694.7,0.28789405]
[1736624174899,1.07545201,695.72,694.7,0.28789405]
[1736624175895,1.07545201,695.66,694.7,0.28789405]
[1736624177001,1.07545201,695.64,694.7,0.28789405]
[1736624178503,1.07545201,695.78,694.7,0.28789405]
[1736624179801,1.07545201,695.76,694.7,0.28789405]
[1736624180597,1.07545201,695.75,694.7,0.28789405]
[1736624182401,1.07545201,695.76,694.7,0.28789405]
[1736624184606,1.07545201,695.68,694.7,0.28789405]
[1736624185806,1.07545201,695.72,694.7,0.28789405]
[1736624186605,1.07545201,695.73,694.7,0.28789405]
[1736624187503,1.07545201,695.74,694.7,0.28789405]
[1736624188505,0.8909803,696.0,694.7,0.28789405]
[1736624188506,1.07545201,695.77,694.7,0.28789405]
[1736624190701,1.07545201,695.75,694.7,0.28789405]
[1736624191707,1.07545201,695.81,694.7,0.28789405]
[1736624192608,1.07545201,695.75,694.7,0.28789405]
[1736624193612,1.07545201,695.73,694.7,0.28789405]
[1736624194708,1.07545201,695.74,694.7,0.28789405]
[1736624196010,1.07545201,695.75,694.7,0.28789405]
[1736624197810,1.07545201,695.74,694.7,0.28789405]
[1736624198907,1.07545201,695.68,694.7,0.28789405]
[1736624203117,1.07545201,695.66,694.7,0.28789405]
[1736624204917,1.07545201,695.65,694.7,0.28789405]
[1736624205818,1.07545201,695.7,694.7,0.28789405]
[1736624208713,1.07545201,695.69,694.7,0.28789405]
[1736624213617,1.07545201,695.62,694.7,0.28789405]
[1736624214214,1.07545201,695.63,694.7,0.28789405]
[1736624216622,0.88994566,696.0,694.7,0.28789405]
[1736624216623,1.07545201,695.66,694.7,0.28789405]
[1736624217421,0.88994566,696.0,694.7,0.28789405]
[1736624217422,1.07545201,695.67,694.7,0.28789405]
[1736624218219,1.07545201,695.66,694.7,0.28789405]
[1736624218923,1.07545201,695.68,694.7,0.28789405]
[1736624219526,1.07545201,695.67,694.7,0.28789405]
[1736624221425,1.07545201,695.78,694.7,0.28789405]
[1736624222230,1.07545201,695.77,694.7,0.28789405]
[1736624224031,1.07545201,695.75,694.7,0.28789405]
[1736624225133,0.28735219,696.01,694.7,0.28789405]
[1736624225134,1.07545201,695.73,694.7,0.28789405]
[1736624226235,1.07545201,695.71,694.7,0.28789405]
[1736624226935,1.07545201,695.69,694.7,0.28789405]
[1736624228430,0.89100365,696.0,694.7,0.28789405]
[1736624228431,1.07545201,695.68,694.7,0.28789405]
[1736624229236,1.07545201,695.62,694.7,0.28789405]
[1736624230835,1.07545201,695.63,694.7,0.28789405]
[1736624232039,1.07545201,695.55,694.7,0.28789405]
[1736624233038,1.07545201,695.56,694.7,0.28789405]
[1736624235043,1.07545201,695.57,694.7,0.28789405]
[1736624235842,1.07545201,695.56,694.7,0.28789405]
[1736624236441,2.18154607,695.99,694.7,0.28789405]
[1736624236442,1.07545201,695.62,694.7,0.28789405]
[1736624237544,1.07545201,695.61,694.7,0.28789405]
[1736624240346,1.07545201,695.62,694.7,0.28789405]
[1736624240943,1.07545201,695.63,694.7,0.28789405]
[1736624242149,1.07545201,695.87,694.7,0.28789405]
[1736624243349,1.07545201,695.83,694.7,0.28789405]
[1736624248051,1.07545201,695.84,694.7,0.28789405]
[1736624250248,1.07545201,695.88,694.7,0.28789405]
[1736624251054,1.07545201,695.79,694.7,0.28789405]
[1736624251745,1.07545201,695.78,694.7,0.28789405]
[1736624253448,1.07545201,695.8,694.7,0.28789405]
[1736624254454,1.07545201,695.85,694.7,0.28789405]
[1736624255354,1.07545201,695.87,694.7,0.28789405]
[1736624256157,1.07545201,695.89,694.7,0.28789405]
[1736624256655,1.07545201,695.9,694.7,0.28789405]
[1736624258257,1.07545201,695.92,694.7,0.28789405]
[1736624259351,1.07545201,695.98,694.7,0.28789405]
[1736624260354,1.07545201,695.9,694.7,0.28789405]
[1736624261350,1.07545201,695.91,694.7,0.28789405]
[1736624265362,1.07545201,695.86,694.7,0.28789405]
[1736624266357,1.07545201,695.82,694.7,0.28789405]
[1736624273370,1.07545201,695.81,694.7,0.28789405]
[1736624274467,1.07545201,695.83,694.7,0.28789405]
[1736624276666,1.07545201,695.81,694.7,0.28789405]
[1736624277668,1.07545201,695.78,694.7,0.28789405]
[1736624278570,1.07545201,695.77,694.7,0.28789405]
[1736624279473,1.07545201,695.76,694.7,0.28789405]
[1736624280672,1.07545201,695.89,694.7,0.28789405]
[1736624282069,1.07545201,695.87,694.7,0.28789405]
[1736624283769,1.07545201,695.9,694.7,0.28789405]
[1736624284579,1.07545201,695.88,694.7,0.28789405]
[1736624285478,1.07545201,695.87,694.7,0.28789405]
[1736624286275,0.28736045,695.99,694.7,0.28789405]
[1736624286276,1.07545201,695.89,694.7,0.28789405]
[1736624287279,1.07545201,695.88,694.7,0.28789405]
[1736624288280,1.07545201,695.81,694.7,0.28789405]
[1736624289277,1.07545201,695.8,694.7,0.28789405]
[1736624290380,1.07545201,695.72,694.7,0.28789405]
[1736624291177,1.07545201,695.71,694.7,0.28789405]
[1736624292182,1.07545201,695.72,694.7,0.28789405]
[1736624292983,1.07545201,695.7,694.7,0.28789405]
[1736624293886,1.07545201,695.71,694.7,0.28789405]
[1736624294783,1.07545201,695.72,694.7,0.28789405]
[1736624296882,1.07545201,695.8,694.7,0.28789405]
[1736624297889,1.07545201,695.82,694.7,0.28789405]
[1736624298788,1.07545201,695.81,694.7,0.28789405]
[1736624303790,1.07545201,695.74,694.7,0.28789405]
[1736624305092,1.07545201,695.75,694.7,0.28789405]
[1736624305896,1.07545201,695.8,694.7,0.28789405]
[1736624310293,1.07545201,695.79,694.7,0.28789405]
[1736624312101,1.07545201,695.86,694.7,0.28789405]
[1736624313001,1.07545201,695.84,694.7,0.28789405]
[1736624314098,1.07545201,695.85,694.7,0.28789405]
[1736624315304,1.07545201,695.8,694.7,0.28789405]
[1736624319009,1.07545201,695.73,694.7,0.28789405]
[1736624321811,0.89047159,695.98,694.7,0.28789405]
[1736624321812,1.07545201,695.72,694.7,0.28789405]
[1736624322708,1.07545201,695.73,694.7,0.28789405]
[1736624323510,1.07545201,695.72,694.7,0.28789405]
[1736624324405,1.07545201,695.73,694.7,0.28789405]